Cogmind - Beta 9.2 @@@ ROGUE MODE // 2019.11.30 @ 15:05:26 Player: agrue8u Result: Destroyed by Y-45 Defender with Beam Rifle Performance ------------- Evolutions (2) 1000 Regions Visited (4) 800 Robots Destroyed (51) 255 Value Destroyed (1550) 1550 Prototype IDs (1) 20 Alien Tech Used (0) 0 Bonus (0) 0 TOTAL SCORE: 3625 Bonus ------- None Cogmind --------- Core Integrity 0/550 Matter 300/300 Energy 280/280 System Corruption 4% Temperature Cool (105) Movement Core (300) Ox5 Location -8/Storage Parts ------- > --- POWER (1) -------- Heavy Ion Engine > --- PROPULSION (4) --- (None) > --- UTILITY (4) ------ Medium Storage Unit Improved Signal Interpreter > --- WEAPON (2) ------- (None) > --- INVENTORY (8) ---- Heavy Ion Engine Drone Bay (2/2) Drone Bay (2/2) Beam Rifle Peak State ------------ > --- POWER ------------ Improved Ion Engine > --- PROPULSION ------- Gravmag System Gravmag System Gravmag System Gravmag System > --- UTILITY ---------- Medium Storage Unit Improved Signal Interpreter Long-range Terrain Scanner Hardened Light Armor Plating > --- WEAPON ----------- Heavy Assault Rifle Assault Cannon > --- INVENTORY -------- Ion Engine Improved Ion Engine Particle Cannon Particle Cannon Assault Rifle Light Assault Rifle Light Assault Rifle Datajack [Rating: 33] Favorites ----------- Power Ion Engine Engine Ion Engine Propulsion Gravmag System Treads Light Treads Leg Aluminum Leg Wheel Compact Wheel Hover Unit Gravmag System Flight Unit Cesium-ion Thruster Utility Medium Storage Unit Device Advanced Sensor Array Storage Medium Storage Unit Processor Improved Signal Interpreter Protection Hardened Light Armor Plating Weapon Assault Cannon Energy Gun Medium Laser Energy Cannon Particle Cannon Ballistic Gun Assault Rifle Ballistic Cannon Assault Cannon Special Weapon Mining Laser Build | -11 -10 -9 -8 -8 ------- Run | Scr Mat Mat Mat Sto Slots Evolved 4 | . . 2 2 . Power . | . . . . . Propulsion 2 | . . 2 . . Utility 2 | . . . 2 . Weapon . | . . . . . Parts Attached 53 | 7 9 18 12 7 Power 8 | 2 . 4 1 1 Engine 8 | 2 . 4 1 1 Core . | . . . . . Reactor . | . . . . . Propulsion 16 | 2 2 7 4 1 Treads 2 | . . 2 . . Leg 8 | 2 2 4 . . Wheel 1 | . . 1 . . Hover 4 | . . . 4 . Flight 1 | . . . . 1 Utility 7 | 1 2 1 3 . Device 2 | . . . 2 . Storage 2 | 1 1 . . . Processor 1 | . . 1 . . Hackware . | . . . . . Protection 2 | . 1 . 1 . Artifact . | . . . . . Weapon 22 | 2 5 6 4 5 Energy Gun 3 | 1 . 1 . 1 Energy Cannon 4 | . 1 . 2 1 Ballistic Gun 10 | 1 2 2 2 3 Ballistic Cannon 2 | . . 2 . . Launcher . | . . . . . Special Weapon 3 | . 2 1 . . Impact Weapon . | . . . . . Slashing Weapon . | . . . . . Piercing Weapon . | . . . . . Special Melee Weapon . | . . . . . Unidentified Prototypes 1 | . . . 1 . Parts Lost 28 | . 1 12 1 14 Power 3 | . . 2 . 1 Propulsion 11 | . . 6 . 5 Utility 3 | . . 1 . 2 Weapon 11 | . 1 3 1 6 Highest Loss Streak 8 | . 1 8 1 6 Average Slot Usage (%) 89 | . 94 84 92 92 Engine 9 | . 14 8 9 8 Treads 2 | . . 7 . . Leg 13 | . 28 23 5 . Wheel 1 | . . 3 2 . Hover 13 | . . . 25 30 Device 3 | . . . 6 8 Storage 10 | . 14 11 9 9 Processor 6 | . . 5 9 9 Protection 6 | . 8 4 8 7 Energy Gun 2 | . 8 2 . . Energy Cannon 3 | . . 1 2 7 Ballistic Gun 9 | . 17 7 8 8 Ballistic Cannon 4 | . . 9 7 . Naked Turns . | . . . . . Heaviest Build 31 | 13 18 23 31 29 Greatest Support 44 | 20 20 30 44 44 Greatest Overweight (x) 5 | . . 2 2 5 Average Overweight (x) . | . . . . . Largest Inventory Capacity 8 | 6 8 8 8 8 Average Capacity 7 | 5 6 8 8 8 Most Carried 8 | 4 8 8 8 8 Average Carried 6 | 2 4 6 7 6 Final Capacity 8 | 6 8 8 8 8 Final Carried 8 | 3 8 8 7 4 Class Distribution -------------------- 69% | Mutant 19% | Scavenger-Mutant 11% | Commander-Mutant Dominant Class ---------------- Mutant | -10/Materials Mutant | -9/Materials Mutant | -8/Materials Mutant | -8/Storage Resources | -11 -10 -9 -8 -8 ----------- Run | Scr Mat Mat Mat Sto Matter Collected 1473 | 270 112 598 217 276 Remotely . | . . . . . Salvage Created 1673 | . 185 866 236 386 Parts 88 | . 16 44 13 15 Haulers Intercepted . | . . . . . Recyclers Shooed 1 | . . 1 . . Parts Field Recycled . | . . . . . Retrieved Matter . | . . . . . Parts Self-Destructed . | . . . . . Prevented . | . . . . . Kills | -11 -10 -9 -8 -8 ------- Run | Scr Mat Mat Mat Sto Combat Hostiles Destroyed 47 | . 7 25 7 8 Guns 22 | . 4 9 5 4 Cannons 22 | . 3 13 2 4 AOE 2 | . . 2 . . Classes Destroyed 8 | . 3 4 1 . Recycler 2 | . . 2 . . Mechanic 1 | . . 1 . . Watcher 1 | . 1 . . . Swarmer 15 | . 3 8 3 1 Grunt 21 | . 4 11 2 4 Brawler 1 | . . . 1 . Duelist 1 | . . 1 . . Sentry 9 | . . 5 1 3 Best Kill Streak 5 | . 2 5 2 3 Combat Bots Only 5 | . 2 5 2 3 Max Kills in Single Turn 3 | . 1 3 1 1 Gunslinging . | . . . . . Exploded 2 | . . 2 . . Melee . | . . . . . Uniques/NPCs Destroyed . | . . . . . Combat | -11 -10 -9 -8 -8 -------- Run | Scr Mat Mat Mat Sto Damage Taken 4062 | . 392 1664 386 1620 Core 1015 | . 111 354 55 495 Absorbed by Shields . | . . . . . Core Remaining (%) 55 | 100 55 11 . . Volleys Fired 182 | . 21 77 29 55 Largest 2 | . 2 2 2 2 Hottest 120 | . 120 94 112 91 Shots Fired 315 | . 42 151 43 79 Gun 198 | . 35 76 28 59 Cannon 111 | . 1 75 15 20 Launcher . | . . . . . Special 6 | . 6 . . . Kinetic 241 | . 22 128 35 56 Thermal 51 | . 20 . 8 23 Explosive . | . . . . . Electromagnetic 23 | . . 23 . . Robot Hit Streak 22 | . 5 22 9 9 Robot Miss Streak 6 | . 4 6 5 3 Penetration Max . | . . . . . Secondary Targets 1 | . 1 . . . Max Gunslinging Chain 1 | . 1 . . . Shots Hit Robots 203 | . 19 99 29 56 Core Hits 82 | . 10 39 11 22 Critical Hits 3 | . . . 1 2 Critical Kills . | . . . . . Critical Parts Destroyed 3 | . . . 1 2 Melee Attacks . | . . . . . Impact . | . . . . . Slashing . | . . . . . Piercing . | . . . . . Sneak Attacks . | . . . . . Combat Hostiles . | . . . . . Follow-up Attacks . | . . . . . Damage Inflicted 3587 | . 314 2106 505 662 Guns 1704 | . 176 845 291 392 Cannons 1649 | . 18 1149 214 268 Explosions 112 | . . 112 . . Melee . | . . . . . Ramming 2 | . . . . 2 Kinetic 2584 | . 114 1718 360 392 Thermal 725 | . 200 112 145 268 Explosive . | . . . . . Electromagnetic 276 | . . 276 . . Impact . | . . . . . Slashing . | . . . . . Piercing . | . . . . . Highest Corruption 14 | . . 14 . 4 Average Corruption 13 | . . 14 . 3 Corruption Purged . | . . . . . Effects 55 | . . 53 . 2 Message Errors 6 | . . 6 . . Matter Fused 7 | . . 7 . . Heat Flow Errors 6 | . . 4 . 2 Energy Discharges 5 | . . 5 . . Data Loss (minor) 3 | . . 3 . . Data Loss (major) 2 | . . 2 . . Misfires 1 | . . 1 . . Misdirections 2 | . . 2 . . Targeting Errors 20 | . . 20 . . Weapon Failures 3 | . . 3 . . Overload Shots . | . . . . . Overflow Damage 21 | . . 21 . . Projectiles 21 | . . 21 . . Explosions . | . . . . . Melee . | . . . . . Knockbacks 13 | . . 13 . . Impact . | . . . . . Kinetic 11 | . . 11 . . Secondary 2 | . . 2 . . Self-Inflicted Damage 35 | . . 35 . . Shots 1 | . . 1 . . Rammed 3 | . . . . 3 Targets Rammed 3 | . . . . 3 Kicked . | . . . . . Crushed . | . . . . . Highest Temperature 333 | . 202 315 333 332 Average Temperature 117 | . 58 87 163 156 Received Heat Transfer 1566 | . 144 486 117 819 Effects 6 | . 2 1 . 3 Energy Bleed 3 | . . 1 . 2 Interference 2 | . 2 . . . Short Circuit 1 | . . . . 1 Siege Activations . | . . . . . Robots Corrupted 1 | . . 1 . . Combat Hostiles 1 | . . 1 . . Parts Fried 1 | . . 1 . . Impact Corruptions . | . . . . . Robots Melted . | . . . . . Combat Hostiles . | . . . . . Parts Melted 1 | . 1 . . . Heat Transferred 1412 | . 472 200 259 481 Parts Sabotaged . | . . . . . Parts Stolen . | . . . . . Parts Stripped . | . . . . . Power Chain Reactions 1 | . . 1 . . Missiles Intercepted . | . . . . . Alert | -11 -10 -9 -8 -8 ------- Run | Scr Mat Mat Mat Sto Peak Influence 385 | . 202 385 377 159 Average Influence 131 | . 89 142 241 102 Maximum Alert Level 1 | . 1 1 1 . Low Security (%) 73 | 100 97 63 10 100 Level 1 26 | . 2 36 89 . Level 2 . | . . . . . Level 3 . | . . . . . Level 4 . | . . . . . Level 5 . | . . . . . High Security . | . . . . . Max Security . | . . . . . Squads Dispatched 3 | . 2 . . 1 Investigation 2 | . 1 . . 1 Extermination . | . . . . . Reinforcement 1 | . 1 . . . Assault . | . . . . . Garrison . | . . . . . Intercept . | . . . . . Construction Impeded . | . . . . . Haulers Reinforced . | . . . . . Stealth | -11 -10 -9 -8 -8 --------- Run | Scr Mat Mat Mat Sto Distress Signals 3 | . 1 1 . 1 Communications Jammed . | . . . . . Distress Signals . | . . . . . Times Spotted 78 | . 12 37 11 18 Peak Tracking Total 9 | . 3 5 4 9 Tactical Retreats 4 | . 1 1 1 1 Traps | -11 -10 -9 -8 -8 ------- Run | Scr Mat Mat Mat Sto Traps Triggered 4 | . 1 . . 3 Indirectly . | . . . . . Trap Hack Attempts . | . . . . . Triggered . | . . . . . Disarmed . | . . . . . Reprogrammed . | . . . . . Reused . | . . . . . Traps Extracted . | . . . . . Installed . | . . . . . Triggered . | . . . . . Machines | -11 -10 -9 -8 -8 ---------- Run | Scr Mat Mat Mat Sto Machines Disabled 4 | . . 4 . . Max in Single Turn 1 | . . 1 . . Machines Sabotaged . | . . . . . Garrisons Compromised . | . . . . . Overloaded Fab Kills . | . . . . . Fab Network Shutdowns . | . . . . . Hacking | -11 -10 -9 -8 -8 --------- Run | Scr Mat Mat Mat Sto Machines Accessed 10 | . 2 3 1 4 Terminals 9 | . 2 3 1 3 Fabricators . | . . . . . Repair Stations . | . . . . . Recycling Units 1 | . . . . 1 Scanalyzers . | . . . . . Garrison Access . | . . . . . Total Hacks 16 | . 4 5 2 5 Successful 10 | . 2 3 1 4 Failed 6 | . 2 2 1 1 Catastrophic 2 | . . 1 . 1 Database Lockouts . | . . . . . Manual . | . . . . . Terminals 15 | . 4 5 2 4 Fabricators . | . . . . . Repair Stations . | . . . . . Recycling Units 1 | . . . . 1 Scanalyzers . | . . . . . Garrison Access . | . . . . . Terminal Hacks 9 | . 2 3 1 3 Record 1 | . . 1 . . Open Door 1 | . . . . 1 Level Access Points 1 | . 1 . . . Branch Access Points 2 | . . . 1 1 Terminal Index 1 | . . 1 . . Patrol Status 1 | . . . . 1 Investigation Status 1 | . . 1 . . Hauler Manifests 1 | . 1 . . . Fabricator Hacks . | . . . . . Repair Station Hacks . | . . . . . Recycling Unit Hacks 1 | . . . . 1 Report Inventory 1 | . . . . 1 Scanalyzer . | . . . . . Garrison Access Hacks . | . . . . . Unauthorized Hacks . | . . . . . Terminals . | . . . . . Fabricators . | . . . . . Repair Stations . | . . . . . Recycling Units . | . . . . . Scanalyzers . | . . . . . Garrison Access . | . . . . . Data Cores Recovered . | . . . . . Used . | . . . . . Hacking Detections 5 | . 1 2 1 1 Full Trace Events 1 | . . . . 1 Feedback Events . | . . . . . Feedback Blocked . | . . . . . Robot Schematics Acquired . | . . . . . Robots Built . | . . . . . Matter . | . . . . . Time . | . . . . . Total Robot Build Rating . | . . . . . Part Schematics Acquired . | . . . . . Parts Built . | . . . . . Matter . | . . . . . Time . | . . . . . Total Part Build Rating . | . . . . . Parts Repaired . | . . . . . Time . | . . . . . Parts Recycled . | . . . . . Recycled Matter . | . . . . . Retrieved Matter . | . . . . . Retrieved Components . | . . . . . Parts Scanalyzed . | . . . . . Part Schematics Acquired . | . . . . . Parts Damaged . | . . . . . Bothacking | -11 -10 -9 -8 -8 ------------ Run | Scr Mat Mat Mat Sto Used RIF Installer . | . . . . . Robots Hacked . | . . . . . Non-combat . | . . . . . Combat . | . . . . . Robot Hacks Applied . | . . . . . Relay Couplers Released . | . . . . . Robots Rewired . | . . . . . Allies Hacked . | . . . . . Hacks Repelled . | . . . . . Allies | -11 -10 -9 -8 -8 -------- Run | Scr Mat Mat Mat Sto Total Allies 10 | . . . . 10 Largest Group 10 | . . . . 10 Highest-Rated Group 173 | . . . . 173 Highest-Rated Ally 29 | . . . . 29 Total Orders 7 | . . . . 7 STAY 1 | . . . . 1 GOTO 2 | . . . . 2 ROAM 2 | . . . . 2 EXPLORE 2 | . . . . 2 Ally Attacks . | . . . . . Total Damage . | . . . . . Kills . | . . . . . Allies Corrupted . | . . . . . Allies Melted . | . . . . . Intel | -11 -10 -9 -8 -8 ------- Run | Scr Mat Mat Mat Sto Robot Analysis Total . | . . . . . Derelict Logs Recovered . | . . . . . Drone Launches 4 | . . . . 4 Drone Recoveries . | . . . . . Exploration | -11 -10 -9 -8 -8 ------------- Run | Scr Mat Mat Mat Sto Turns Passed 2833 | 83 405 1021 398 926 Spaces Moved 1428 | 60 245 502 312 309 Core 19 | 18 . . . 1 Treads . | . . . . . Legs 852 | 42 245 502 63 . Wheels . | . . . . . Hover 557 | . . . 249 308 Flight . | . . . . . Fastest Speed 48 | 50 120 120 48 48 Average Speed 99 | 99 120 131 66 63 Slowest Speed 300 | 120 120 180 180 300 Overloaded Moves . | . . . . . Propulsion Burnouts . | . . . . . Robots Hopped . | . . . . . Cave-ins Triggered 1 | . . 1 . . Exploration Rate (%) 27 | 4 29 42 30 32 Regions Visited 4 Branch Regions 1 Pre-discovered Areas . | . . . . . Known Exits Taken 3 | . 1 1 1 . Unknown Exits Taken 1 | 1 . . . . Scrap Searched . | . . . . . Spaces Dug . | . . . . . Terrain Destroyed 22 | . . 19 3 . Melee . | . . . . . Projectile 19 | . . 16 3 . AOE 3 | . . 3 . . Actions | -11 -10 -9 -8 -8 --------- Run | Scr Mat Mat Mat Sto Total 2509 | 82 300 708 458 961 Wait 783 | 7 12 94 93 577 Move 1424 | 59 244 501 311 309 Hop . | . . . . . Pick Up 40 | 8 10 12 5 5 Fast Attach 17 | 2 1 7 6 1 Attach 20 | 4 1 8 2 5 Detach . | . . . . . Swap 16 | 1 7 3 4 1 Drop 22 | 1 4 6 8 3 Fire 182 | . 21 77 29 55 Melee . | . . . . . Ram 3 | . . . . 3 Kick . | . . . . . Crush . | . . . . . Escape Stasis . | . . . . . Rewire . | . . . . . Trap . | . . . . . Miscellaneous 2 | . . . . 2 Route ------- -11/Scrapyard -10/Materials (discovered 3 exits: *Mat x3) -9/Materials -8/Materials (discovered 2 exits: *Fac / *Sto) -8/Storage (discovered 1 exit: Rec) History --------- Turn | Location | Event 11 | -11/Scrapyard | Discovered new exit (range 14) 84 | -11/Scrapyard | Entered Materials 124 | -10/Materials | Identified exit to Materials 301 | -10/Materials | Build established: Mutant 489 | -10/Materials | Entered another Materials area 489 | -9/Materials | Evolved 2 slots: Propulsion x2 898 | -9/Materials | Crushed by falling debris 898 | -9/Materials | Core integrity fell below 50% 898 | -9/Materials | System corruption reached 10% 931 | -9/Materials | Lost 8 parts (2p2n1u3w) 1269 | -9/Materials | Core integrity fell below 20% 1387 | -9/Materials | Build established: Scavenger-Mutant 1498 | -9/Materials | Discovered new exit (range 11) 1509 | -9/Materials | Identified exit to Materials 1510 | -9/Materials | Entered another Materials area 1510 | -8/Materials | Evolved 2 slots: Utility x2 1675 | -8/Materials | Identified exit to Storage 1732 | -8/Materials | Discovered new exit (range 14) 1793 | -8/Materials | Identified exit to Factory 1908 | -8/Materials | Entered Storage 1924 | -8/Storage | Build established: Mutant 1967 | -8/Storage | Identified exit to Recycling 2513 | -8/Storage | Assisted by bots powering up and referring to "LRC-V3" 2660 | -8/Storage | Lost 3 parts (2n1w) 2768 | -8/Storage | Lost 6 parts (1p1n1u3w) 2819 | -8/Storage | Core integrity fell below 50% 2820 | -8/Storage | Build established: Commander-Mutant 2826 | -8/Storage | Core integrity fell below 20% 2834 | -8/Storage | Destroyed by Y-45 Defender with Beam Rifle Last Messages --------------- 02797_ Triggered Shock Trap. 02797_ The floor emits a surge of raw power. 02797_ System corrupted (+2). 02798_ Triggered Shock Trap. 02798_ The floor emits a surge of raw power. 02798_ System corrupted (+2). 02802_ Connecting with Terminal... 02804_ System corrupted: Heat flow error (+198). 02805_ G-47 Trooper suffers critical hit. 02805_ Destroyed Aluminum Leg. 02807_ U-05 Engineer builds a Door. 02814_ Adv. Sensor Array destroyed. 02819_ System corrupted: Heat flow error (+133). 02819_ U-05 Engineer lays Concrete. 02821_ Overheating: Energy bleed (-56). 02821_ Lgt. Assault Rifle destroyed. 02822_ Gravmag System destroyed. 02823_ S-10 Pest destroyed. 02827_ Slammed into G-47 Trooper. 02833_ Cesium-ion Thruster destroyed. Map ----- +----------------------------------------------------+ | ????????????????? # ? # # """ """ Y"#?? | | ????????????????? # "??" # + ""#?? | | ??????????####???# # "???" # # ###?? | | ??????????# ??# # "????" # # #???? | | ?????????? ?/ # ""???" + + #???? | | ???????????? """ # # ""??" # # #???? | | ??????????????"" # # """" # ###########???? | | ???????????????? + + % # # ##??? | | ?????????????????# # # # %#??? | | ?????????######### ####+##### # ##??? | | ?????????# #?? ??# # #???? | | ?######### +?? ## %+ #???? | | #?? # # """"" #???? | | ???## #???"" ## # """"" #???? | | ????# #???"" ## # """"" #???? | | ????# % #???"" ## *%###########???? | | ????# #########???##### [[#?????????????? | | ????# ????????????????# =%#?????????????? | | ? ?????????????????# =#?????????????? | | ???##+### ??????????????????# #?????????????? | | ????????#???????????????????# ^a#?????????????? | | ????????????????????????????# g #?????????????? | | ??????????????????########### ##????????????? | | ??????????????????# gg T#????????????? | | ??????????????????+ g Y s ##????????????? | | ??????????????????# @%% #?????????????? | | ??????????????????###+#a#########?????????????? | | ????????????????????? ???????????????????????? | | ??????????????????? ?????????????????????????? | | ??????????????????#???????????????????????????? | | ??????????????????????????????????????????????? | | ??????????????????????????????????????????????? | | ??????????????????????????????????????????????? | | ??????????????????????????????????????????????? | | ??????????????????????????????????????????????? | | ??????????????????????????????????????????????? | | ??????????????????????????????????????????????? | | | | | | | | | | | | | | | | | | | | | | | | | | | +----------------------------------------------------+ Best States ------------- Heat Dissipation 31 Energy Generation 14 Energy Capacity 280 Matter Stores 300 Matter Capacity 300 Sight Range 16 Robot Scan Range 16 Terrain Scan Range 24 Terrain Scan Density 10 Armor Coverage 150 Core Shielding 20 Evasion (%) 55 Item Schematics ----------------- None Robot Schematics ------------------ None Fabricated ------------ Nothing Alien Tech Used ----------------- None Achievements -------------- I Spy The More The Merrier Unlikely Earthworm Challenges ------------ None Game ------ Seed ContainmentBoreUnit Manual? 0 Play Time 01:00:56 Cumulative 12.0 hours Start 2019.11.30 @ 12:33:36 End 2019.11.30 @ 15:05:26 Sessions 4 Manual Loads 0 Difficulty Rogue Special Mode None Game No. 6 Rogue 6 Adventurer 0 Explorer 0 Win Type - Total 0 Types 0/0/0/0/0/0/0 Lore% 12 Gallery% 10 Achievement% 11 Wizard Run 0 Options --------- ASCII 1 Keyboard 1 Movement Numpad Keybinds 1 Fullscreen 1 Font 16/SmallcapsGlow Map View 75x55 Tactical HUD 1 Map Filters NONE Filters NONE Steam 0 RUN: c1c25fdf-70c8-4841-96c0-9c7f08742e09